fUST/lending_fUST_20250307
["ID","MTS","AMOUNT","RATE_DAILY","PERIOD"]
[355557981,1741277436439,-300.0,0.00019149,2]
[355557983,1741277436449,-500.0,0.0001915,2]
[355557985,1741277436458,-500.0,0.0001915,2]
[355557987,1741277436468,-500.0,0.0001915,2]
[355557989,1741277436477,-500.0,0.0001915,2]
[355557991,1741277436487,-500.0,0.0001915,2]
[355557993,1741277436496,-225.06894065,0.0001915,2]
[355557995,1741277436505,-300.0,0.00020869,2]
[355557997,1741277436514,-249.05316354,0.000222,2]
[355557999,1741277436523,-179.01,0.00023889,2]
[355558001,1741277436532,-956.66839305,0.00023899,2]
[355558003,1741277436543,-18776.5694042,0.00023899,2]
[355558063,1741277438395,-5166.76220275,0.00023899,2]
[355558064,1741277438405,-509.068105,0.00023912,2]
[355558065,1741277438415,-1842.48234895,0.00023941,2]
[355558066,1741277438425,-981.7038311,0.00024034,2]
[355558067,1741277438434,-179.3992211,0.00024041,2]
[355558068,1741277438446,-17278.31763357,0.000249,4]
[355558069,1741277438456,-5596.61487014,0.00025,2]
[355558070,1741277438465,-500.0,0.000259,2]
[355558071,1741277438474,-500.26078992,0.000259,2]
[355558072,1741277438484,-1842.48234894,0.00026364,2]
[355558073,1741277438495,-314.10181915,0.000268,2]
[355558074,1741277438505,-500.0,0.00026846,2]
[355558075,1741277438514,-500.0,0.00026846,2]
[355558077,1741277438525,-500.0,0.00026846,2]
[355558078,1741277438535,-500.0,0.00026846,2]
[355558079,1741277438544,-479.97755714,0.00026846,2]
[355558080,1741277438554,-463.9625632,0.00026846,2]
[355558081,1741277438563,-500.0,0.00026846,2]
[355558082,1741277438572,-500.0,0.00026846,2]
[355558083,1741277438582,-500.0,0.00026846,2]
[355558084,1741277438591,-500.0,0.00026846,2]
[355558085,1741277438600,-500.0,0.00026846,2]
[355558086,1741277438610,-516.31789432,0.00026846,2]
[355558087,1741277438619,-500.0,0.00026846,2]
[355558088,1741277438629,-500.0,0.00026846,2]
[355558089,1741277438639,-500.0,0.00026846,2]
[355558090,1741277438648,-500.0,0.00026846,2]
[355558091,1741277438658,-500.0,0.00026846,2]
[355558092,1741277438667,-500.0,0.00026846,2]
[355558093,1741277438680,-500.0,0.00026846,2]
[355558094,1741277438690,-500.0,0.00026846,2]
[355558095,1741277438700,-500.0,0.00026846,2]
[355558096,1741277438710,-500.0,0.00026846,2]
[355558097,1741277438720,-500.0,0.00026846,2]
[355558098,1741277438730,-500.0,0.00026846,2]
[355558099,1741277438740,-500.0,0.00026846,2]
[355558100,1741277438750,-500.0,0.00026846,2]
[355558101,1741277438760,-500.0,0.00026846,2]
[355558102,1741277438769,-500.0,0.00026846,2]
[355558103,1741277438778,-500.0,0.00026846,2]
[355558104,1741277438787,-500.0,0.00026846,2]
[355558105,1741277438796,-141.86030554,0.00026846,2]
[355558122,1741277440698,-358.13969446,0.00026846,2]
[355558123,1741277440707,-83.25344723,0.00026846,2]
[355558124,1741277440721,-416.74655277,0.00026846,2]
[355558125,1741277440731,-76.53600876,0.00026846,2]
[355558161,1741277443575,-423.46399124,0.00026846,2]
[355558162,1741277443585,-321.52594023,0.00026846,2]
[355558163,1741277443730,-38.07703153,0.00026846,2]
[355558176,1741277446462,-140.39702824,0.00026846,2]
[355558178,1741277446472,-319.0642221,0.00026846,2]
[355558198,1741277729437,-189.583012,0.00035344,120]
[355558200,1741277824519,174.61,0.00035586,120]
[355558220,1741278248295,1000.0,0.00019,3]
[355558222,1741278518147,2182.96702835,0.00015,4]
[355558316,1741278632950,-5696.84924455,0.0002,120]
[355558317,1741278632960,-3026.422609,0.00020489,2]
[355558318,1741278632970,-759.58393391,0.00021,4]
[355558319,1741278632980,-300.0,0.00023999,2]
[355558320,1741278632990,-151.0,0.00024,14]
[355558321,1741278633001,-4257.84868968,0.00024,2]
[355558322,1741278633012,-7154.09047528,0.000242,3]
[355558323,1741278633025,-2064.5055936,0.000242,3]
[355558324,1741278633039,-430.31826683,0.000242,3]
[355558340,1741278638748,-462.80632478,0.000242,3]
[355558374,1741278643860,-796.8705225,0.000242,3]
[355558453,1741279832034,-300.0,0.00019021,2]
[355558454,1741279832044,-2.0,0.00019022,2]
[355558456,1741279832055,-953.15966464,0.00019022,2]
[355558457,1741279832065,-500.0,0.00019022,2]
[355558458,1741279832075,-900.0,0.00019022,2]
[355558459,1741279832085,-500.0,0.00019022,2]
[355558460,1741279832094,-500.0,0.00019022,2]
[355558461,1741279832104,-500.0,0.00019022,2]
[355558462,1741279832114,-677.80573658,0.00019022,2]
[355558463,1741279832123,-500.0,0.000192,2]
[355558464,1741279832143,-500.0,0.000192,2]
[355558466,1741279832158,-500.0,0.000192,2]
[355558467,1741279832169,-500.0,0.000192,2]
[355558469,1741279832180,-500.0,0.000192,2]
[355558471,1741279832190,-500.0,0.000192,2]
[355558473,1741279832199,-500.0,0.000192,2]
[355558476,1741279832209,-500.0,0.000192,2]
[355558478,1741279832218,-710.94782736,0.000192,2]
[355558480,1741279832228,-500.0,0.000192,2]
[355558482,1741279832237,-160.0,0.0002,3]
[355558485,1741279832247,-420.0,0.00020732,2]
[355558487,1741279832256,-249.05316354,0.000221,2]
[355558489,1741279832265,-587.0,0.00022598,2]
[355558491,1741279832274,-436.68506221,0.00023293,2]
[355558493,1741279832284,-436.68506222,0.00023784,2]
[355558495,1741279832293,-1010.4654233,0.00024612,2]
[355558497,1741279832303,-600.0,0.00024631,2]
[355558499,1741279832312,-14354.62865658,0.000259,4]
[355558501,1741279832324,-2001.73872166,0.000259,4]
[355558504,1741279832336,-430.816423,0.00026619,2]
[355558506,1741279832346,-179.01,0.0002689,2]
[355558508,1741279832356,-249.05316354,0.000271,2]
[355558510,1741279832366,-196.1918511,0.00027397,120]
[355558512,1741279832377,-1476.73155396,0.0002785,2]
[355558514,1741279832389,-334.97765404,0.0002785,2]
[355558516,1741279832399,-1014.0560543,0.00028475,2]
[355558518,1741279832408,-956.668393,0.00028666,2]
[355558520,1741279832418,-151.0,0.0003,120]
[355558522,1741279832428,-253.0,0.0003,2]
[355558524,1741279832442,-400.00000001,0.000317,2]
[355558526,1741279832452,-249.05316354,0.000321,2]
[355558528,1741279832462,-160.0,0.0003262,2]
[355558530,1741279832472,-300.0,0.00032718,2]
[355558531,1741279832482,-151.0,0.00033,120]
[355558532,1741279832492,-253.0,0.00033,2]
[355558533,1741279832501,-151.0,0.00033003,2]
[355558534,1741279832511,-500.0,0.00033003,2]
[355558535,1741279832521,-147.15473511,0.00033003,2]
[355558536,1741279832533,-392.84526489,0.00033003,2]
[355558537,1741279832543,-378.69060587,0.00033003,2]
[355558538,1741279832559,-204.50939413,0.00033003,2]
[355558539,1741279832568,-629.856,0.00033003,2]
[355558540,1741279832578,-75.93697432,0.00033003,2]
[355558541,1741279832590,-604.30750568,0.00033003,2]
[355558542,1741279832600,-734.6640384,0.00033003,2]
[355558543,1741279832610,-793.43716147,0.00033003,2]
[355558544,1741279832620,-707.57285273,0.00033003,2]
[355558552,1741279837888,-561.25488507,0.00032935,2]
[355558553,1741279837897,-64.7220959,0.00033003,2]
[355558554,1741279837909,-84.61718576,0.00033003,2]
[355558555,1741279837918,-833.4846841,0.00033003,2]
[355558556,1741279837929,-166.5153159,0.00033003,2]
[355558557,1741279837939,-648.09994425,0.00033003,2]
[355558558,1741279837948,-151.0,0.00033023,14]
[355558559,1741279837957,-208.068412,0.00033023,14]
[355558560,1741279837966,-208.068412,0.00033023,14]
[355558561,1741279837975,-156.344807,0.00033023,14]
[355558562,1741279837984,-151.0,0.00033023,14]
[355558563,1741279837993,-151.0,0.00033023,14]
[355558564,1741279838002,-555.96,0.00033025,3]
[355558565,1741279838011,-277.98,0.00033025,3]
[355558566,1741279838020,-833.98,0.00033025,3]
[355558567,1741279838029,-200.0,0.00033033,7]
[355558568,1741279838039,-224.03532159,0.00033033,7]
[355558569,1741279838048,-500.0,0.00033033,2]
[355558570,1741279838057,-500.0,0.00033033,2]
[355558571,1741279838066,-500.0,0.00033033,2]
[355558572,1741279838076,-500.0,0.00033033,2]
[355558573,1741279838085,-500.0,0.00033033,2]
[355558574,1741279838094,-500.0,0.00033033,2]
[355558575,1741279838103,-500.0,0.00033033,2]
[355558576,1741279838112,-500.0,0.00033033,2]
[355558577,1741279838122,-500.0,0.00033033,2]
[355558578,1741279838131,-500.0,0.00033033,2]
[355558579,1741279838141,-500.0,0.00033033,2]
[355558580,1741279838150,-500.0,0.00033033,2]
[355558581,1741279838160,-500.0,0.00033033,2]
[355558582,1741279838170,-500.0,0.00033033,2]
[355558583,1741279838179,-500.0,0.00033033,2]
[355558584,1741279838189,-500.0,0.00033033,2]
[355558585,1741279838198,-500.0,0.00033033,2]
[355558586,1741279838207,-500.0,0.00033033,2]
[355558587,1741279838216,-500.0,0.00033033,2]
[355558588,1741279838226,-500.0,0.00033033,2]
[355558589,1741279838235,-500.0,0.00033033,2]
[355558590,1741279838245,-500.0,0.00033033,2]
[355558591,1741279838254,-500.0,0.00033033,2]
[355558592,1741279838263,-500.0,0.00033033,2]
[355558593,1741279838272,-500.0,0.00033033,2]
[355558594,1741279838282,-500.0,0.00033033,2]
[355558595,1741279838291,-500.0,0.00033033,2]
[355558596,1741279838301,-500.0,0.00033033,2]
[355558597,1741279838310,-500.0,0.00033033,2]
[355558598,1741279838320,-516.82811775,0.00033033,2]
[355558599,1741279838330,-500.0,0.00033033,2]
[355558600,1741279838340,-500.0,0.00033033,2]
[355558601,1741279838350,-500.0,0.00033033,2]
[355558602,1741279838359,-500.0,0.00033033,2]
[355558603,1741279838369,-500.0,0.00033033,2]
[355558604,1741279838379,-500.0,0.00033033,2]
[355558605,1741279838388,-500.0,0.00033033,2]
[355558606,1741279838398,-500.0,0.00033033,2]
[355558607,1741279838408,-500.0,0.00033033,2]
[355558608,1741279838417,-500.0,0.00033033,2]
[355558609,1741279838427,-500.0,0.00033033,2]
[355558610,1741279838441,-500.0,0.00033033,2]
[355558611,1741279838450,-500.0,0.00033033,2]
[355558612,1741279838460,-500.0,0.00033033,2]
[355558613,1741279838470,-500.0,0.00033033,2]
[355558614,1741279838481,-500.0,0.00033033,2]
[355558615,1741279838492,-500.0,0.00033033,2]
[355558616,1741279838502,-500.0,0.00033033,2]
[355558617,1741279838512,-500.0,0.00033033,2]
[355558618,1741279838522,-500.0,0.00033033,2]
[355558619,1741279838542,-500.0,0.00033033,2]
[355558620,1741279838551,-500.0,0.00033033,2]
[355558621,1741279838560,-500.0,0.00033033,2]
[355558622,1741279838570,-500.0,0.00033033,2]
[355558623,1741279838579,-500.0,0.00033033,2]
[355558624,1741279838589,-500.0,0.00033033,2]
[355558625,1741279838598,-500.0,0.00033033,2]
[355558626,1741279838608,-544.44251528,0.00033033,2]
[355558627,1741279838624,-107.2402965,0.00033033,2]
[355558628,1741279838636,-500.0,0.00033033,2]
[355558629,1741279838647,-500.0,0.00033033,2]
[355558630,1741279838657,-500.0,0.00033033,2]
[355558631,1741279838667,-151.0,0.00033033,14]
[355558632,1741279838678,-151.0,0.00033033,14]
[355558633,1741279838689,-151.0,0.00033033,14]
[355558634,1741279838700,-239.793744,0.00033033,14]
[355558635,1741279838712,-151.0,0.00033034,14]
[355558636,1741279838722,-151.0,0.00033034,14]
[355558637,1741279838733,-151.0,0.00033034,14]
[355558638,1741279838743,-151.0,0.00033034,14]
[355558639,1741279838754,-151.0,0.00033034,14]
[355558640,1741279838763,-151.0,0.00033034,14]
[355558641,1741279838773,-151.0,0.00033034,14]
[355558642,1741279838784,-181.362347,0.00033034,14]
[355558643,1741279838794,-151.0,0.00033034,14]
[355558644,1741279838804,-151.0,0.00033034,14]
[355558645,1741279838814,-151.0,0.00033034,14]
[355558646,1741279838824,-151.0,0.00033034,14]
[355558647,1741279838834,-180.575871,0.00033034,14]
[355558648,1741279838843,-180.575871,0.00033034,14]
[355558649,1741279838853,-180.575871,0.00033034,14]
[355558650,1741279838863,-180.575871,0.00033034,14]
[355558651,1741279838874,-180.575871,0.00033034,14]
[355558652,1741279838885,-180.575871,0.00033034,14]
[355558653,1741279838895,-180.575871,0.00033034,14]
[355558654,1741279838904,-180.575871,0.00033034,14]
[355558655,1741279838914,-151.0,0.00033034,14]
[355558656,1741279838924,-151.0,0.00033034,14]
[355558657,1741279838934,-151.0,0.00033034,14]
[355558658,1741279838945,-151.0,0.00033034,14]
[355558659,1741279838955,-151.0,0.00033034,14]
[355558660,1741279838966,-300.00799,0.00033034,14]
[355558661,1741279838976,-151.0,0.00033034,14]
[355558662,1741279838985,-151.0,0.00033034,14]
[355558663,1741279838996,-151.0,0.00033034,14]
[355558664,1741279839006,-151.0,0.00033034,14]
[355558665,1741279839016,-178.017,0.00033034,14]
[355558666,1741279839026,-151.0,0.00033034,14]
[355558667,1741279839035,-151.0,0.00033034,14]
[355558668,1741279839045,-151.0,0.00033034,14]
[355558669,1741279839054,-151.0,0.00033034,14]
[355558670,1741279839064,-208.068412,0.00033034,14]
[355558671,1741279839074,-208.068412,0.00033034,14]
[355558672,1741279839084,-208.068412,0.00033034,14]
[355558673,1741279839094,-208.068412,0.00033034,14]
[355558674,1741279839104,-208.068412,0.00033034,14]
[355558675,1741279839113,-208.068412,0.00033034,14]
[355558676,1741279839123,-208.068412,0.00033034,14]
[355558677,1741279839134,-208.068412,0.00033034,14]
[355558678,1741279839144,-38756.3908771,0.00033035,2]
[355558679,1741279839155,-151.0,0.00033035,14]
[355558680,1741279839165,-151.0,0.00033035,14]
[355558681,1741279839175,-151.0,0.00033035,14]
[355558682,1741279839184,-158.571563,0.00033035,14]
[355558683,1741279839194,-158.571563,0.00033035,14]
[355558684,1741279839204,-151.0,0.00033035,14]
[355558685,1741279839214,-151.0,0.00033035,14]
[355558686,1741279839225,-151.0,0.00033035,14]
[355558687,1741279839235,-180.575871,0.00033035,14]
[355558688,1741279839245,-180.575871,0.00033035,14]
[355558689,1741279839255,-151.0,0.00033035,14]
[355558690,1741279839266,-151.0,0.00033035,14]
[355558691,1741279839277,-225.770646,0.00033035,14]
[355558692,1741279839287,-208.068412,0.00033035,14]
[355558693,1741279839298,-208.068412,0.00033035,14]
[355558694,1741279839308,-158.430371,0.00033041,14]
[355558695,1741279839318,-151.0,0.00033041,14]
[355558696,1741279839328,-151.0,0.00033041,14]
[355558698,1741279839339,-151.0,0.00033041,14]
[355558699,1741279839348,-151.0,0.00033041,14]
[355558700,1741279839359,-151.0,0.00033041,14]
[355558701,1741279839369,-151.0,0.00033041,14]
[355558702,1741279839379,-158.571563,0.00033041,14]
[355558703,1741279839392,-158.571563,0.00033041,14]
[355558704,1741279839402,-158.571563,0.00033041,14]
[355558705,1741279839412,-158.571563,0.00033041,14]
[355558706,1741279839422,-158.571563,0.00033041,14]
[355558707,1741279839432,-158.571563,0.00033041,14]
[355558708,1741279839444,-230.947165,0.00033042,14]
[355558709,1741279839455,-151.0,0.00033042,14]
[355558710,1741279839465,-151.0,0.00033042,14]
[355558711,1741279839475,-151.268531,0.00033042,14]
[355558712,1741279839485,-151.0,0.00033042,14]
[355558713,1741279839496,-151.0,0.00033042,14]
[355558714,1741279839506,-154.1005,0.00033042,14]
[355558715,1741279839517,-151.0,0.00033043,14]
[355558716,1741279839527,-151.0,0.00033043,14]
[355558717,1741279839537,-151.0,0.00033043,14]
[355558718,1741279839548,-295.7836,0.00033043,14]
[355558719,1741279839558,-151.254667,0.00033043,14]
[355558720,1741279839568,-151.477403,0.00033043,14]
[355558722,1741279839579,-151.634398,0.00033043,14]
[355558723,1741279839589,-260.202199,0.00033043,14]
[355558724,1741279839600,-151.0,0.00033043,14]
[355558725,1741279839610,-158.571563,0.00033043,14]
[355558726,1741279839621,-158.571563,0.00033043,14]
[355558727,1741279839631,-151.0,0.00033043,14]
[355558728,1741279839645,-151.0,0.00033043,14]
[355558729,1741279839655,-151.0,0.00033043,14]
[355558730,1741279839664,-180.575871,0.00033043,14]
[355558731,1741279839674,-180.575871,0.00033043,14]
[355558732,1741279839684,-151.0,0.00033043,14]
[355558733,1741279839695,-151.0,0.00033043,14]
[355558734,1741279839706,-152.221674,0.00033044,14]
[355558735,1741279839716,-181.23242,0.00033044,14]
[355558736,1741279839726,-151.0,0.00033044,14]
[355558737,1741279839737,-151.0,0.00033044,14]
[355558738,1741279839747,-154.972528,0.00033044,14]
[355558739,1741279839757,-158.571563,0.00033044,14]
[355558740,1741279839767,-158.571563,0.00033044,14]
[355558741,1741279839777,-208.068412,0.00033044,14]
[355558742,1741279839788,-208.068412,0.00033044,14]
[355558743,1741279839798,-15625.0,0.00033045,2]
[355558744,1741279839808,-158.571563,0.00033045,14]
[355558745,1741279839819,-158.571563,0.00033045,14]
[355558746,1741279839830,-151.0,0.00033045,14]
[355558747,1741279839840,-151.0,0.00033045,14]
[355558748,1741279839851,-180.575871,0.00033045,14]
[355558749,1741279839861,-180.575871,0.00033045,14]
[355558750,1741279839873,-151.0,0.00033045,14]
[355558751,1741279839885,-151.0,0.00033045,14]
[355558752,1741279839895,-208.068412,0.00033045,14]
[355558753,1741279839906,-208.068412,0.00033045,14]
[355558754,1741279839916,-213.43967237,0.0003325,5]
[355558755,1741279839927,-500.0,0.0003325,5]
[355558756,1741279839937,-504.82325728,0.0003325,5]
[355558757,1741279839947,-178.73517193,0.0003325,5]
[355558758,1741279839957,-387.46440367,0.0003325,5]
[355558759,1741279839968,-500.0,0.0003325,5]
[355558760,1741279839978,-561.25488504,0.00033426,2]
[355558761,1741279839988,-500.0,0.00033486,5]
[355558762,1741279839998,-625.97698097,0.0003355,2]
[355558763,1741279840009,-163.08,0.00033551,2]
[355558764,1741279840018,-561.25488504,0.00033918,2]
[355558765,1741279840029,-158.571563,0.0003398,14]
[355558767,1741279840039,-158.571563,0.0003398,14]
[355558768,1741279840049,-151.0,0.0003398,14]
[355558769,1741279840060,-286.01882,0.0003398,14]
[355558770,1741279840070,-180.575871,0.0003398,14]
[355558771,1741279840080,-180.575871,0.0003398,14]
[355558773,1741279840090,-151.0,0.0003398,14]
[355558774,1741279840100,-151.0,0.0003398,14]
[355558775,1741279840110,-291.35,0.0003398,120]
[355558776,1741279840120,-158.571563,0.0003399,14]
[355558777,1741279840129,-158.571563,0.0003399,14]
[355558778,1741279840141,-151.0,0.0003399,14]
[355558779,1741279840151,-180.575871,0.0003399,14]
[355558780,1741279840161,-180.575871,0.0003399,14]
[355558781,1741279840170,-151.0,0.0003399,14]
[355558782,1741279840180,-36066.66344431,0.0003399,2]
[355558783,1741279840199,-41446.11830999,0.0003399,2]
[355558784,1741279840209,-151.0,0.0003399,14]
[355558785,1741279840219,-208.068412,0.0003399,14]
[355558786,1741279840229,-208.068412,0.0003399,14]
[355558787,1741279840240,-150.5,0.0003399,120]
[355558788,1741279840250,-208.068412,0.0003399,14]
[355558789,1741279840259,-208.068416,0.0003399,14]
[355558790,1741279840269,-262.02,0.00033999,2]
[355558791,1741279840279,-312.36202253,0.00033999,7]
[355558792,1741279840289,-245.39651932,0.00033999,7]
[355558793,1741279840299,-22910.98351375,0.00034,2]
[355558949,1741281032156,-160.0,0.0002,3]
[355558951,1741281032166,-300.0,0.00025204,2]
[355558953,1741281032176,-368.88980492,0.00025205,2]
[355558963,1741281032263,-131.11019508,0.00025205,2]
[355558965,1741281032273,-500.0,0.00025205,2]
[355558967,1741281032282,-500.0,0.00025205,2]
[355558969,1741281032292,-500.0,0.00025205,2]
[355558971,1741281032302,-500.0,0.00025205,2]
[355558973,1741281032312,-225.06894065,0.00025205,2]
[355558975,1741281032321,-420.0,0.00027299,2]
[355558976,1741281032330,-394.93105935,0.00029081,2]
[355559004,1741281038031,-1214.09084517,0.00029081,2]
[355559088,1741281040368,-4733.01649588,0.00029081,2]
[355559090,1741281040377,-250.0,0.00029172,2]
[355559092,1741281040387,-587.0,0.00029567,2]
[355559094,1741281040396,-423.7821759,0.00031028,2]
[355559096,1741281040406,-410.447203,0.00031275,2]
[355559098,1741281040419,-1887.35840289,0.00032188,2]
[355559100,1741281040428,-158.15,0.00032255,2]
[355559102,1741281040437,-158.15,0.00032255,2]
[355559104,1741281040447,-158.15,0.00032255,2]
[355559106,1741281040456,-158.15,0.00032255,2]
[355559108,1741281040465,-158.15,0.00032255,2]
[355559110,1741281040475,-20173.8987162,0.00032265,2]
[355559112,1741281040485,-158.15,0.00032288,2]
[355559114,1741281040494,-158.15,0.00032288,2]
[355559116,1741281040503,-158.15,0.00032288,2]
[355559118,1741281040512,-158.15,0.00032288,2]
[355559120,1741281040522,-10000.0,0.00032298,2]
[355559122,1741281040531,-158.15,0.0003289,2]
[355559124,1741281040540,-158.15,0.0003289,2]
[355559126,1741281040550,-158.15,0.0003289,2]
[355559128,1741281040559,-158.15,0.0003289,2]
[355559130,1741281040569,-15811.15513255,0.000329,6]
[355559132,1741281040578,-908.81950761,0.00033,5]
[355559134,1741281040587,-300.0,0.00033,2]
[355559136,1741281040596,-1118.0,0.00033,30]
[355559138,1741281040605,-288.6,0.00033034,2]
[355559140,1741281040614,-184.2414518,0.0003332,4]
[355559142,1741281040624,-1887.35840286,0.00033368,2]
[355559144,1741281040633,-157.514116,0.00033624,4]
[355559146,1741281040642,-791.4639582,0.0003389,2]
[355559148,1741281040651,-4004.85965445,0.00033936,2]
[355559150,1741281040663,-500.0,0.00033939,2]
[355559152,1741281040672,-500.0,0.00033939,2]
[355559154,1741281040681,-500.0,0.00033939,2]
[355559156,1741281040690,-500.0,0.00033939,2]
[355559158,1741281040699,-500.0,0.00033939,2]
[355559160,1741281040708,-500.0,0.00033939,2]
[355559162,1741281040717,-500.0,0.00033939,2]
[355559164,1741281040727,-500.0,0.00033939,2]
[355559166,1741281040736,-500.0,0.00033939,2]
[355559168,1741281040745,-500.0,0.00033939,2]
[355559170,1741281040755,-500.0,0.00033939,2]
[355559173,1741281040764,-500.0,0.00033939,2]
[355559174,1741281040773,-345.7998648,0.00033939,2]
[355559177,1741281040783,-500.0,0.00033939,2]
[355559179,1741281040792,-500.0,0.00033939,2]
[355559181,1741281040801,-500.0,0.00033939,2]
[355559183,1741281040810,-500.0,0.00033939,2]
[355559185,1741281040819,-500.0,0.00033939,2]
[355559187,1741281040828,-500.0,0.00033939,2]
[355559189,1741281040838,-500.0,0.00033939,2]
[355559190,1741281040847,-500.0,0.00033939,2]
[355559192,1741281040860,-500.0,0.00033939,2]
[355559195,1741281040869,-500.0,0.00033939,2]
[355559196,1741281040879,-500.0,0.00033939,2]
[355559199,1741281040889,-500.0,0.00033939,2]
[355559201,1741281040901,-500.0,0.00033939,2]
[355559203,1741281040913,-500.0,0.00033939,2]
[355559205,1741281040922,-500.0,0.00033939,2]
[355559207,1741281040934,-500.0,0.00033939,2]
[355559209,1741281040944,-500.0,0.00033939,2]
[355559211,1741281040954,-500.0,0.00033939,2]
[355559213,1741281040964,-500.0,0.00033939,2]
[355559215,1741281040974,-500.0,0.00033939,2]
[355559217,1741281040983,-500.0,0.00033939,2]
[355559219,1741281040993,-500.0,0.00033939,2]
[355559221,1741281041003,-500.0,0.00033939,2]
[355559223,1741281041012,-277.98,0.0003398,3]
[355559225,1741281041023,-833.94,0.0003398,3]
[355559227,1741281041032,-191.182912,0.0003398,2]
[355559229,1741281041042,-500.0,0.0003399,2]
[355559231,1741281041052,-151.0,0.0003399,14]
[355559233,1741281041062,-151.0,0.0003399,14]
[355559235,1741281041072,-33610.0111077,0.0003399,2]
[355559237,1741281041082,-151.0,0.0003399,14]
[355559239,1741281041092,-151.0,0.0003399,14]
[355559241,1741281041103,-1000.0,0.00034,2]
[355559243,1741281041112,-47208.133999,0.00034,2]
[355559245,1741281041121,-151.0,0.00034,14]
[355559247,1741281041131,-500.0,0.00034,2]
[355559249,1741281041140,-210.151751,0.00034,14]
[355559251,1741281041150,-151.0,0.00034,14]
[355559269,1741281041355,-313.86610187,0.00034,5]
[355559271,1741281041365,-460.38177288,0.00034,5]
[355559273,1741281041375,-166.14312,0.00034,14]
[355559275,1741281041385,-791.4639582,0.00034143,2]
[355559277,1741281041394,-200.0,0.000342,7]
[355559279,1741281041403,-664.31,0.000343,30]
[355559281,1741281041417,-704.26,0.000343,30]
[355559283,1741281041427,-220.0,0.000343,2]
[355559285,1741281041436,-791.4639582,0.00034395,2]
[355559287,1741281041446,-288.6,0.00034404,2]
[355559288,1741281041455,-1887.35840286,0.00034548,2]
[355559290,1741281041464,-791.4639582,0.00034648,2]
[355559292,1741281041474,-500.0,0.00034667,5]
[355559294,1741281041483,-500.0,0.00034667,5]
[355559296,1741281041493,-160.0,0.00034667,5]
[355559298,1741281041503,-500.0,0.00034667,5]
[355559300,1741281041512,-500.0,0.00034667,5]
[355559302,1741281041521,-151.0,0.000348,17]
[355559304,1741281041531,-791.4639582,0.000349,2]
[355559306,1741281041540,-150.5,0.00034933,120]
[355559308,1741281041548,-500.0,0.00034973,5]
[355559309,1741281041557,-500.0,0.00034973,5]
[355559311,1741281041566,-500.0,0.00034973,2]
[355559313,1741281041574,-173.06300672,0.00034973,5]
[355559315,1741281041583,-161.0,0.00034973,5]
[355559317,1741281041592,-500.0,0.00034973,5]
[355559319,1741281041601,-500.0,0.00034973,5]
[355559321,1741281041611,-500.0,0.00034973,5]
[355559323,1741281041621,-500.0,0.00034973,5]
[355559325,1741281041630,-500.0,0.00034973,5]
[355559327,1741281041640,-500.0,0.00034973,5]
[355559329,1741281041649,-218.65341577,0.00034978,7]
[355559331,1741281041662,-171.77756352,0.00034978,7]